fUSD/lending_fUSD_20240319
["ID","MTS","AMOUNT","RATE_DAILY","PERIOD"]
[319543576,1710839935610,-333.33333333,0.00054219,120]
[319543577,1710839935638,-500.0,0.00054246,90]
[319543578,1710839935662,-153.84615385,0.00054274,120]
[319543579,1710839935686,-480.0,0.000543,120]
[319543580,1710839935714,-333.33333333,0.00054411,120]
[319543581,1710839935738,-1706.58,0.00054465,120]
[319543582,1710839935763,-500.0,0.00054465,120]
[319543583,1710839935788,-166.0,0.000545,107]
[319543585,1710839935813,-153.0,0.0005452,120]
[319543587,1710839935837,-153.84615385,0.00054521,120]
[319543588,1710839935861,-151.0,0.00054598,120]
[319543589,1710839935885,-181.8782,0.00054598,120]
[319543591,1710839935907,-181.878196,0.00054598,120]
[319543592,1710839935932,-151.0,0.00054603,120]
[319543593,1710839935963,-333.33333333,0.00054603,120]
[319543594,1710839935988,-385.21111111,0.0005474,120]
[319543596,1710839936018,-153.84615385,0.0005474,120]
[319543597,1710839936044,-500.0,0.00054794,90]
[319543598,1710839936067,-2000.0,0.00054794,120]
[319543599,1710839936093,-2000.0,0.00054794,120]
[319543600,1710839936117,-2000.0,0.00054794,120]
[319543601,1710839936141,-2000.0,0.00054794,120]
[319543602,1710839936164,-2000.0,0.00054794,120]
[319543603,1710839936189,-2000.0,0.00054794,120]
[319543604,1710839936217,-2000.0,0.00054794,120]
[319543605,1710839936249,-2000.0,0.00054794,120]
[319543606,1710839936281,-2000.0,0.00054794,120]
[319543607,1710839936308,-2000.0,0.00054794,120]
[319543608,1710839936334,-1808.09682607,0.00054794,120]
[319543609,1710839936359,-2000.0,0.00054794,120]
[319543610,1710839936387,-2000.0,0.00054794,120]
[319543611,1710839936415,-2000.0,0.00054794,120]
[319543612,1710839936441,-1612.5,0.00054794,120]
[319543613,1710839936473,-500.0,0.00054794,120]
[319543614,1710839936497,-1496.64,0.00054794,120]
[319543615,1710839936530,-500.0,0.00054794,120]
[319543616,1710839936555,-500.0,0.00054794,120]
[319543617,1710839936579,-500.0,0.00054794,120]
[319543618,1710839936604,-590.72080083,0.00054794,120]
[319543619,1710839936628,-500.0,0.00054794,120]
[319543620,1710839936655,-500.0,0.00054794,120]
[319543621,1710839936680,-500.0,0.00054794,120]
[319543622,1710839936712,-194.03820934,0.00054794,120]
[319543623,1710839936737,-500.0,0.00054794,120]
[319543624,1710839936762,-500.0,0.00054794,120]
[319543625,1710839936788,-518.49525514,0.00054794,120]
[319543626,1710839936813,-500.0,0.00054794,120]
[319543627,1710839936838,-500.0,0.00054794,120]
[319543628,1710839936865,-500.0,0.00054794,120]
[319543629,1710839936892,-500.0,0.00054794,120]
[319543630,1710839936918,-522.66544054,0.00054794,120]
[319543631,1710839936942,-500.0,0.00054794,120]
[319543632,1710839936974,-500.0,0.00054794,120]
[319543633,1710839936998,-505.39478709,0.00054794,120]
[319543634,1710839937023,-500.0,0.00054794,120]
[319543635,1710839937048,-513.23843477,0.00054794,120]
[319543636,1710839937072,-156.56935394,0.00054794,120]
[319543637,1710839937098,-278.6868043,0.00054794,120]
[319543638,1710839937122,-500.3025373,0.00054794,120]
[319543639,1710839937146,-500.0,0.00054794,120]
[319543640,1710839937171,-500.0,0.00054794,120]
[319543641,1710839937195,-500.0,0.00054794,120]
[319543642,1710839937222,-500.0,0.00054794,120]
[319543643,1710839937249,-500.0,0.00054794,120]
[319543644,1710839937272,-500.0,0.00054794,120]
[319543645,1710839937295,-500.0,0.00054794,120]
[319543646,1710839937319,-500.0,0.00054794,120]
[319543647,1710839937343,-500.0,0.00054794,120]
[319543648,1710839937367,-347.15369962,0.00054794,120]
[319543649,1710839937390,-500.0,0.00054794,120]
[319543650,1710839937414,-500.0,0.00054794,120]
[319543651,1710839937437,-500.0,0.00054794,120]
[319543652,1710839937463,-500.0,0.00054794,120]
[319543653,1710839937488,-500.0,0.00054794,120]
[319543654,1710839937512,-500.0,0.00054794,120]
[319543655,1710839937537,-588.66731942,0.00054794,120]
[319543656,1710839937559,-500.0,0.00054794,120]
[319543657,1710839937582,-500.0,0.00054794,120]
[319543658,1710839937605,-500.0,0.00054794,120]
[319543659,1710839937629,-500.0,0.00054794,120]
[319543660,1710839937654,-500.0,0.00054794,120]
[319543661,1710839937682,-500.0,0.00054794,120]
[319543662,1710839937712,-500.0,0.00054794,120]
[319543663,1710839937740,-500.0,0.00054794,120]
[319543664,1710839937766,-164.76396168,0.00054794,120]
[319543665,1710839937791,-500.0,0.00054794,120]
[319543666,1710839937815,-500.0,0.00054794,120]
[319543667,1710839937840,-500.0,0.00054794,120]
[319543668,1710839937865,-500.0,0.00054794,120]
[319543669,1710839937891,-500.0,0.00054794,120]
[319543670,1710839937918,-313.3494367,0.00054794,120]
[319543671,1710839937942,-500.0,0.00054794,120]
[319543672,1710839937969,-500.0,0.00054794,120]
[319543673,1710839937993,-500.0,0.00054794,120]
[319543674,1710839938017,-500.0,0.00054794,120]
[319543675,1710839938041,-500.0,0.00054794,120]
[319543676,1710839938066,-500.0,0.00054794,120]
[319543677,1710839938093,-472.8736192,0.00054794,120]
[319543678,1710839938290,-500.0,0.00054794,120]
[319543679,1710839938320,-500.0,0.00054794,120]
[319543680,1710839938343,-1016.68,0.00054794,120]
[319543681,1710839938366,-788.21,0.00054794,120]
[319543682,1710839938391,-500.0,0.00054794,120]
[319543683,1710839938415,-500.0,0.00054794,120]
[319543684,1710839938444,-500.0,0.00054794,120]
[319543685,1710839938473,-500.0,0.00054794,120]
[319543686,1710839938501,-500.0,0.00054794,120]
[319543687,1710839938526,-419.74035088,0.00054794,120]
[319543688,1710839938551,-500.0,0.00054794,120]
[319543689,1710839938575,-500.0,0.00054794,120]
[319543690,1710839938598,-500.0,0.00054794,120]
[319543691,1710839938623,-500.0,0.00054794,120]
[319543692,1710839938647,-500.0,0.00054794,120]
[319543693,1710839938671,-500.0,0.00054794,120]
[319543694,1710839938695,-500.0,0.00054794,120]
[319543695,1710839938722,-500.0,0.00054794,120]
[319543696,1710839938746,-500.0,0.00054794,120]
[319543697,1710839938770,-500.0,0.00054794,120]
[319543698,1710839938794,-500.0,0.00054794,120]
[319543699,1710839938818,-500.0,0.00054794,120]
[319543700,1710839938841,-491.9669581,0.00054794,120]
[319543701,1710839938865,-500.0,0.00054794,120]
[319543702,1710839938888,-500.0,0.00054794,120]
[319543703,1710839938912,-504.11636448,0.00054794,120]
[319543704,1710839938935,-903.75,0.00054794,120]
[319543705,1710839938958,-316.1735794,0.00054794,120]
[319543706,1710839938984,-500.0,0.00054794,120]
[319543707,1710839939007,-500.0,0.00054794,120]
[319543708,1710839939030,-1768.93,0.00054794,120]
[319543709,1710839939110,-500.0,0.00054794,120]
[319543710,1710839939133,-500.0,0.00054794,120]
[319543711,1710839939158,-500.0,0.00054794,120]
[319543712,1710839939181,-500.0,0.00054794,120]
[319543713,1710839939204,-855.44,0.00054794,120]
[319543714,1710839939231,-500.0,0.00054794,120]
[319543715,1710839939255,-500.0,0.00054794,120]
[319543716,1710839939279,-500.0,0.00054794,120]
[319543717,1710839939302,-500.0,0.00054794,120]
[319543718,1710839939334,-500.0,0.00054794,120]
[319543719,1710839939358,-500.0,0.00054794,120]
[319543720,1710839939380,-500.0,0.00054794,120]
[319543721,1710839939404,-1238.06,0.00054794,120]
[319543722,1710839939427,-500.0,0.00054794,120]
[319543723,1710839939449,-500.0,0.00054794,120]
[319543724,1710839939475,-500.0,0.00054794,120]
[319543725,1710839939499,-821.9,0.00054794,120]
[319543726,1710839939523,-500.0,0.00054794,120]
[319543727,1710839939547,-1027.86,0.00054794,120]
[319543728,1710839939571,-1365.91,0.00054794,120]
[319543729,1710839939594,-157.0674812,0.00054794,120]
[319543730,1710839939621,-500.0,0.00054794,120]
[319543731,1710839939645,-779.52,0.00054794,120]
[319543732,1710839939671,-500.0,0.00054794,120]
[319543733,1710839939703,-877.56,0.00054794,120]
[319543734,1710839939733,-884.42,0.00054794,120]
[319543735,1710839939757,-707.79,0.00054794,120]
[319543736,1710839939782,-500.0,0.00054794,120]
[319543737,1710839939807,-760.96,0.00054794,120]
[319543738,1710839939831,-1217.92,0.00054794,120]
[319543739,1710839939854,-500.0,0.00054794,120]
[319543740,1710839939879,-1332.91,0.00054794,120]
[319543741,1710839939903,-500.0,0.00054794,120]
[319543742,1710839939927,-500.0,0.00054794,120]
[319543743,1710839939951,-655.97,0.00054794,120]
[319543744,1710839939981,-500.0,0.00054794,120]
[319543745,1710839940005,-500.0,0.00054794,120]
[319543746,1710839940029,-878.13,0.00054794,120]
[319543747,1710839940053,-500.0,0.00054794,120]
[319543748,1710839940078,-500.0,0.00054794,120]
[319543749,1710839940102,-500.0,0.00054794,120]
[319543750,1710839940126,-709.69,0.00054794,120]
[319543751,1710839940149,-1517.18,0.00054794,120]
[319543752,1710839940173,-500.0,0.00054794,120]
[319543753,1710839940198,-506.22649608,0.00054794,120]
[319543754,1710839940225,-500.0,0.00054794,120]
[319543755,1710839940249,-500.0,0.00054794,120]
[319543756,1710839940272,-500.0,0.00054794,120]
[319543757,1710839940295,-526.57,0.00054794,120]
[319543758,1710839940319,-1166.53,0.00054794,120]
[319543759,1710839940343,-500.0,0.00054794,120]
[319543760,1710839940366,-500.0,0.00054794,120]
[319543761,1710839940389,-500.0,0.00054794,120]
[319543762,1710839940412,-500.0,0.00054794,120]
[319543763,1710839940436,-662.92,0.00054794,120]
[319543764,1710839940459,-500.0,0.00054794,120]
[319543765,1710839940486,-626.4987839,0.00054794,120]
[319543766,1710839940509,-500.0,0.00054794,120]
[319543767,1710839940534,-738.02,0.00054794,120]
[319543768,1710839940559,-500.0,0.00054794,120]
[319543769,1710839940899,-1128.36,0.00054794,120]
[319543770,1710839940924,-912.81,0.00054794,120]
[319543771,1710839940949,-500.0,0.00054794,120]
[319543772,1710839940978,-500.0,0.00054794,120]
[319543773,1710839941003,-500.0,0.00054794,120]
[319543774,1710839941027,-500.0,0.00054794,120]
[319543775,1710839941050,-680.26,0.00054794,120]
[319543776,1710839941077,-586.64,0.00054794,120]
[319543777,1710839941104,-756.31,0.00054794,120]
[319543778,1710839941127,-500.0,0.00054794,120]
[319543779,1710839941154,-500.0,0.00054794,120]
[319543780,1710839941181,-500.0,0.00054794,120]
[319543781,1710839941207,-500.0,0.00054794,120]
[319543782,1710839941240,-500.0,0.00054794,120]
[319543783,1710839941266,-1170.53,0.00054794,120]
[319543784,1710839941293,-500.0,0.00054794,120]
[319543785,1710839941319,-500.0,0.00054794,120]
[319543786,1710839941346,-500.0,0.00054794,120]
[319543787,1710839941373,-500.0,0.00054794,120]
[319543788,1710839941399,-1072.22,0.00054794,120]
[319543789,1710839941425,-1785.76,0.00054794,120]
[319543790,1710839941450,-500.0,0.00054794,120]
[319543791,1710839941483,-642.27758358,0.00054794,120]
[319543792,1710839941514,-795.58,0.00054794,120]
[319543793,1710839941541,-500.0,0.00054794,120]
[319543794,1710839941570,-500.0,0.00054794,120]
[319543795,1710839941597,-500.0,0.00054794,120]
[319543796,1710839941624,-500.0,0.00054794,120]
[319543797,1710839941648,-500.0,0.00054794,120]
[319543798,1710839941674,-500.0,0.00054794,120]
[319543799,1710839941699,-500.0,0.00054794,120]
[319543800,1710839941729,-500.0,0.00054794,120]
[319543801,1710839941752,-500.0,0.00054794,120]
[319543802,1710839941777,-165.6,0.00054794,120]
[319543803,1710839941801,-500.0,0.00054794,120]
[319543804,1710839941826,-598.49327366,0.00054794,120]
[319543805,1710839941852,-500.0,0.00054794,120]
[319543806,1710839941880,-500.0,0.00054794,120]
[319543807,1710839941905,-500.0,0.00054794,120]
[319543808,1710839941933,-1105.6,0.00054794,120]
[319543809,1710839941959,-500.0,0.00054794,120]
[319543810,1710839941992,-711.27,0.00054794,120]
[319543811,1710839942020,-500.0,0.00054794,120]
[319543812,1710839942050,-500.0,0.00054794,120]
[319543813,1710839942079,-500.0,0.00054794,120]
[319543814,1710839942106,-503.12425431,0.00054794,120]
[319543815,1710839942132,-546.49,0.00054794,120]
[319543816,1710839942155,-500.0,0.00054794,120]
[319543817,1710839942179,-500.0,0.00054794,120]
[319543818,1710839942204,-502.19808906,0.00054794,120]
[319543819,1710839942233,-668.05,0.00054794,120]
[319543820,1710839942258,-501.28625901,0.00054794,120]
[319543821,1710839942282,-500.0,0.00054794,120]
[319543822,1710839942307,-500.0,0.00054794,120]
[319543823,1710839942332,-500.0,0.00054794,120]
[319543824,1710839942358,-730.11,0.00054794,120]
[319543825,1710839942384,-1001.51,0.00054794,120]
[319543826,1710839942409,-500.0,0.00054794,120]
[319543827,1710839942435,-500.0,0.00054794,120]
[319543828,1710839942460,-500.0,0.00054794,120]
[319543829,1710839942491,-650.41,0.00054794,120]
[319543830,1710839942520,-500.0,0.00054794,120]
[319543831,1710839942548,-596.75,0.00054794,120]
[319543832,1710839942574,-500.0,0.00054794,120]
[319543833,1710839942600,-500.0,0.00054794,120]
[319543834,1710839942627,-500.0,0.00054794,120]
[319543835,1710839942654,-500.0,0.00054794,120]
[319543836,1710839942680,-500.0,0.00054794,120]
[319543837,1710839942707,-500.0,0.00054794,120]
[319543838,1710839942738,-500.0,0.00054794,120]
[319543839,1710839942764,-500.0,0.00054794,120]
[319543840,1710839942790,-500.0,0.00054794,120]
[319543841,1710839942908,-500.0,0.00054794,120]
[319543842,1710839942935,-500.0,0.00054794,120]
[319543843,1710839942961,-1157.48,0.00054794,120]
[319543844,1710839942990,-500.0,0.00054794,120]
[319543845,1710839943017,-500.0,0.00054794,120]
[319543846,1710839943043,-826.96,0.00054794,120]
[319543847,1710839943068,-484.16473122,0.00054794,120]
[319543848,1710839943094,-500.46741027,0.00054794,120]
[319543849,1710839943120,-339.23413702,0.00054794,120]
[319543850,1710839943146,-1452.39,0.00054794,120]
[319543851,1710839943172,-500.0,0.00054794,120]
[319543852,1710839943197,-500.0,0.00054794,120]
[319543853,1710839943232,-500.0,0.00054794,120]
[319543854,1710839943255,-754.46,0.00054794,120]
[319543855,1710839943279,-688.92,0.00054794,120]
[319543856,1710839943303,-500.0,0.00054794,120]
[319543857,1710839943327,-574.14,0.00054794,120]
[319543858,1710839943351,-632.75,0.00054794,120]
[319543859,1710839943375,-500.0,0.00054794,120]
[319543860,1710839943398,-1225.25,0.00054794,120]
[319543861,1710839943422,-500.0,0.00054794,120]
[319543862,1710839943446,-500.0,0.00054794,120]
[319543863,1710839943475,-835.73,0.00054794,120]
[319543864,1710839943503,-502.37160044,0.00054794,120]
[319543865,1710839943527,-500.0,0.00054794,120]
[319543866,1710839943554,-500.0,0.00054794,120]
[319543867,1710839943582,-500.0,0.00054794,120]
[319543868,1710839943608,-500.0,0.00054794,120]
[319543869,1710839943633,-686.91,0.00054794,120]
[319543870,1710839943657,-988.51,0.00054794,120]
[319543871,1710839943682,-501.57605338,0.00054794,120]
[319543872,1710839943710,-500.0,0.00054794,120]
[319543873,1710839943740,-500.0,0.00054794,120]
[319543874,1710839943766,-500.0,0.00054794,120]
[319543875,1710839943791,-503.78754825,0.00054794,120]
[319543876,1710839943816,-500.0,0.00054794,120]
[319543877,1710839943842,-500.0,0.00054794,120]
[319543878,1710839943868,-500.0,0.00054794,120]
[319543879,1710839943892,-500.0,0.00054794,120]
[319543880,1710839943917,-500.0,0.00054794,120]
[319543881,1710839943940,-500.0,0.00054794,120]
[319543882,1710839943967,-1289.32,0.00054794,120]
[319543883,1710839943991,-500.0,0.00054794,120]
[319543884,1710839944015,-1025.66,0.00054794,120]
[319543885,1710839944040,-527.95,0.00054794,120]
[319543886,1710839944064,-500.0,0.00054794,120]
[319543887,1710839944088,-749.17,0.00054794,120]
[319543888,1710839944111,-500.0,0.00054794,120]
[319543889,1710839944135,-500.0,0.00054794,120]
[319543890,1710839944159,-500.0,0.00054794,120]
[319543891,1710839944182,-500.0,0.00054794,120]
[319543892,1710839944206,-648.38,0.00054794,120]
[319543893,1710839944233,-500.0,0.00054794,120]
[319543894,1710839944257,-722.45,0.00054794,120]
[319543895,1710839944280,-500.0,0.00054794,120]
[319543896,1710839944303,-500.0,0.00054794,120]
[319543897,1710839944327,-500.52711141,0.00054794,120]
[319543898,1710839944350,-258.66117174,0.00054794,120]
[319543899,1710839944376,-500.0,0.00054794,120]
[319543900,1710839944400,-500.0,0.00054794,120]
[319543901,1710839944424,-828.02,0.00054794,120]
[319543902,1710839944448,-2290.02,0.00054794,120]
[319543903,1710839944476,-500.0,0.00054794,120]
[319543904,1710839944501,-500.0,0.00054794,120]
[319543905,1710839944525,-500.0,0.00054794,120]
[319543906,1710839944553,-221.4445566,0.00054794,120]
[319543907,1710839954792,-9067.01726357,0.00052,120]
[319543915,1710840047861,157.55,0.00011307,2]
[319543916,1710840050391,206.5998729,0.00025,120]
[319543924,1710840305633,-188.8,0.00012976,2]
[319543925,1710840305656,-2164.097004,0.00013012,2]
[319543926,1710840305678,-5079.673452,0.00013013,2]
[319543927,1710840305703,-193.54433632,0.00013078,2]
[319543928,1710840305726,-548.10301066,0.00013079,2]
[319543929,1710840305752,-4303.04111929,0.00013079,2]
[319543930,1710840305775,-529.37904197,0.0001308,2]
[319543931,1710840305798,-1053.13673053,0.00013081,2]
[319543932,1710840305820,-150.0,0.00013082,2]
[319543933,1710840305848,-4695.13339267,0.00013152,2]
[319543934,1710840305871,-664.39,0.00013225,2]
[319543935,1710840305896,-157.55,0.00013571,2]
[319543936,1710840305919,-250.0,0.00013699,2]
[319543937,1710840305945,-231.82,0.00013699,2]
[319543938,1710840305975,-200.0,0.00013699,2]
[319543939,1710840306000,-500.0,0.00013699,2]
[319543940,1710840306024,-1852.42,0.00013776,2]
[319543941,1710840306049,-250.0,0.00013776,2]
[319543942,1710840306074,-150.89,0.00013881,2]
[319543943,1710840306103,-150.99,0.00013881,2]
[319543944,1710840306135,-2055.14312773,0.00013882,2]
[319543945,1710840306158,-999.99,0.00013882,2]
[319543946,1710840306184,-150.71,0.00013891,2]
[319543947,1710840306208,-499.99,0.00013896,2]
[319543948,1710840306235,-12945.58428381,0.00013897,2]
[319543949,1710840306258,-155.0,0.00013897,2]
[319543950,1710840306281,-679.18882137,0.00013897,2]
[319543951,1710840306302,-1071.84396192,0.00013897,2]
[319543952,1710840306324,-775.86408371,0.00013897,2]
[319543953,1710840306346,-157.78167391,0.00013898,2]
[319543954,1710840306373,-536.31224077,0.00013898,2]
[319543955,1710840306396,-1467.2885,0.00013898,2]
[319543956,1710840306419,-150.99,0.00013898,2]
[319543957,1710840306442,-2216.36,0.00013899,2]
[319543958,1710840306464,-19709.3952,0.00013899,2]
[319543959,1710840306491,-504.6972,0.00013899,2]
[319543960,1710840306515,-939.2492,0.00013899,2]
[319543961,1710840306540,-3825.9049,0.00013899,2]
[319543962,1710840306562,-2383.932,0.00013899,2]
[319543963,1710840306586,-150.89,0.00013937,2]
[319543964,1710840306611,-150.89,0.00013992,2]
[319543965,1710840306637,-255.74446782,0.00013997,2]
[319543966,1710840306660,-408264.56528545,0.00013997,2]
[319543967,1710840306683,-18776.66116685,0.00013998,2]
[319543968,1710840306711,-285.9682395,0.00013999,2]
[319543969,1710840306740,-342627.78431801,0.00014,2]
[319543970,1710840306765,-39162.95673049,0.00014,2]
[319543971,1710840306787,-150.89,0.00014048,2]
[319543972,1710840306809,-150.89,0.00014104,2]
[319543973,1710840306832,-157.78167388,0.00014137,2]
[319543974,1710840306854,-150.89,0.00014159,2]
[319543975,1710840306876,-150.89,0.00014215,2]
[319543976,1710840306899,-150.89,0.00014271,2]
[319543977,1710840306926,-150.89,0.00014326,2]
[319543978,1710840306952,-157.78167388,0.00014377,2]
[319543979,1710840306977,-150.89,0.00014382,2]
[319543980,1710840307004,-18120.89,0.00014407,2]
[319543981,1710840307027,-150.89,0.00014438,2]
[319543982,1710840307049,-150.89,0.00014493,2]
[319543983,1710840307072,-150.89,0.00014549,2]
[319543984,1710840307094,-150.89,0.00014604,2]
[319543985,1710840307116,-157.78167388,0.00014616,2]
[319543986,1710840307142,-157.78167388,0.00014855,2]
[319543987,1710840307166,-213.18,0.00014904,2]
[319543988,1710840307188,-161564.26235271,0.00015,2]
[319543989,1710840307210,-157.78167388,0.00015094,2]
[319543990,1710840307238,-157.78167388,0.00015334,2]
[319543991,1710840307260,-154.89,0.00015433,2]
[319543992,1710840307281,-157.78167388,0.00015573,2]
[319543993,1710840307304,-157.55,0.00015835,2]
[319543994,1710840307327,-664.39,0.00015965,2]
[319543995,1710840307349,-1379.23,0.00016438,2]
[319543996,1710840307371,-213.18,0.00016767,2]
[319543997,1710840307394,-1079.92315378,0.00017627,2]
[319543998,1710840307417,-151.05666748,0.00017999,2]
[319543999,1710840307438,-7491.1210408,0.00018,2]
[319544000,1710840307461,-157.55,0.00018099,2]
[319544001,1710840307490,-150.73,0.00018187,2]
[319544002,1710840307512,-787.0,0.000185,2]
[319544003,1710840307537,-213.18,0.0001863,2]
[319544004,1710840307561,-664.39,0.00018704,2]
[319544005,1710840307585,-154.93,0.00018745,2]
[319544006,1710840307613,-156.8,0.00018752,2]
[319544007,1710840307640,-154.93,0.00018833,2]
[319544008,1710840307662,-156.8,0.00018871,2]
[319544009,1710840307692,-154.93,0.0001892,2]
[319544010,1710840307715,-156.8,0.0001899,2]
[319544011,1710840307743,-500.0,0.00019,2]
[319544012,1710840307766,-300.0,0.00019,2]
[319544013,1710840307789,-154.93,0.00019008,2]
[319544014,1710840307812,-154.93,0.00019095,2]
[319544015,1710840307835,-156.8,0.0001911,2]
[319544016,1710840307860,-11938.03,0.00019178,2]
[319544017,1710840307884,-231.82,0.00019178,2]
[319544018,1710840307909,-154.93,0.00019183,2]
[319544019,1710840307932,-156.8,0.00019229,2]
[319544020,1710840307957,-154.93,0.0001927,2]
[319544021,1710840307981,-156.8,0.00019348,2]
[319544022,1710840308008,-154.93,0.00019358,2]
[319544023,1710840308292,-154.93,0.00019445,2]
[319544024,1710840308318,-156.8,0.00019468,2]
[319544025,1710840308343,-154.93,0.00019532,2]
[319544026,1710840308367,-156.8,0.00019587,2]
[319544027,1710840308389,-154.93,0.0001962,2]
[319544028,1710840308413,-156.8,0.00019706,2]
[319544029,1710840308436,-154.93,0.00019707,2]
[319544030,1710840308460,-154.93,0.00019795,2]
[319544031,1710840308484,-156.8,0.00019825,2]
[319544032,1710840308509,-154.93,0.00019882,2]
[319544033,1710840308531,-5622.34392973,0.000199,2]
[319544034,1710840308553,-35528.06824941,0.000199,2]
[319544035,1710840308576,-156.8,0.00019945,2]
[319544036,1710840308601,-154.93,0.0001997,2]
[319544037,1710840308624,-177.48,0.0002,2]
[319544038,1710840308649,-154.93,0.00020057,2]
[319544039,1710840308671,-156.8,0.00020064,2]
[319544040,1710840308695,-157.55,0.00020363,2]
[319544041,1710840308719,-213.18,0.00020492,2]
[319544042,1710840308748,-168.14,0.00021096,2]
[319544043,1710840308771,-165.03,0.00021096,2]
[319544044,1710840308794,-1079.92315378,0.00021355,2]
[319544045,1710840308816,-300.0,0.000219,7]
[319544046,1710840308838,-151.15,0.00021918,10]
[319544047,1710840308859,-250.0,0.00021918,2]
[319544048,1710840308882,-158.1,0.00021918,2]
[319544049,1710840308905,-500.0,0.00022299,2]
[319544050,1710840308927,-500.0,0.00022299,2]
[319544051,1710840308951,-550.0,0.00022299,2]
[319544052,1710840308975,-327.66104432,0.00022299,2]
[319544053,1710840309001,-226.54306813,0.00022299,2]
[319544054,1710840309022,-234314.31203852,0.000223,2]
[319544055,1710840309044,-213.18,0.00022355,2]
[319544056,1710840309068,-157.55,0.00022627,2]
[319544057,1710840309089,-250.0,0.00023,3]
[319544058,1710840309111,-157.55,0.0002489,2]
[319544059,1710840309133,-600.0,0.000249,9]
[319544060,1710840309154,-148149.07,0.00025,14]
[319544061,1710840309175,-9666.26416013,0.00025,2]
[319544064,1710840395620,-250.96066705,0.000139,2]
[319544065,1710840395647,-529.37904197,0.00019611,2]
[319544066,1710840395672,-2219.69163616,0.00019612,2]
[319544067,1710840395698,-536.31224073,0.00019613,2]
[319544068,1710840395724,-151.23,0.00021918,10]
[319544069,1710840395748,-207.03574087,0.0002473,2]
[319544070,1710840395775,-200.22417662,0.0002473,2]
[319544071,1710840395805,-1084.47770338,0.0002473,2]
[319544072,1710840395831,-159.81661283,0.00024731,2]
[319544073,1710840395855,-527.56151923,0.00024731,2]
[319544074,1710840395880,-158991.95824041,0.00025,2]
[319544075,1710840395904,-300.0,0.00025,3]
[319544076,1710840395929,-3040.6862182,0.00025,5]
[319544077,1710840395954,-24539.80842107,0.00025,2]
[319544078,1710840395978,-1462.89512824,0.00025,2]
[319544079,1710840396003,-7461.57264164,0.00025,2]
[319544080,1710840396029,-19559.94161468,0.00025,2]
[319544081,1710840396060,-1128.68810189,0.00025,2]
[319544082,1710840396088,-247.88476134,0.00025,2]
[319544083,1710840396114,-1079.92315378,0.00025082,2]
[319544084,1710840396578,-536.31224073,0.00025327,2]
[319544085,1710840396609,-151.23,0.00025342,10]
[319544086,1710840396634,-157.06015258,0.00026134,2]
[319544087,1710840396658,-89851.1394103,0.000264,5]
[319544088,1710840396685,-157.55,0.00027154,2]
[319544089,1710840396710,-193.72171037,0.00027306,2]
[319544090,1710840396734,-193.72171037,0.00027643,2]
[319544091,1710840396758,-193.72171037,0.00027923,2]
[319544092,1710840396784,-151.23,0.00028767,10]
[319544093,1710840396814,-1079.92315378,0.00028809,2]
[319544094,1710840396846,-193.72171037,0.00029269,2]
[319544095,1710840396873,-157.55,0.00029418,2]